fUSD/lending_fUSD_20260617
["ID","MTS","AMOUNT","RATE_DAILY","PERIOD"]
[425237013,1781627526000,-1531.422776,0.00035951,30]
[425237012,1781627526000,-3653.519003,0.00035951,30]
[425237002,1781627526000,-399.18849,0.00035951,7]
[425237008,1781627526000,-151.0,0.00035951,30]
[425237001,1781627526000,-159.04856,0.00035951,30]
[425236992,1781627526000,-204.0,0.000359,120]
[425237000,1781627526000,-931.731581,0.00035951,30]
[425236996,1781627526000,-158.25033973,0.0003593,2]
[425237007,1781627526000,-931.731581,0.00035951,30]
[425236999,1781627526000,-399.18849,0.00035951,7]
[425236997,1781627526000,-1000.0,0.00035945,120]
[425236994,1781627526000,-1000.0,0.00035917,120]
[425236995,1781627526000,-1049.71,0.00035918,30]
[425236993,1781627526000,-2029.0026,0.00035907,2]
[425236990,1781627526000,-1133.8,0.000359,120]
[425237014,1781627526000,-2301.506184,0.00035951,30]
[425236991,1781627526000,-150.0,0.000359,120]
[425236998,1781627526000,-159.04856,0.00035951,30]
[425237010,1781627526000,-159.048556,0.00035951,30]
[425237004,1781627526000,-151.0,0.00035951,30]
[425237016,1781627526000,-1531.422776,0.00035951,30]
[425237011,1781627526000,-931.73158,0.00035951,30]
[425237040,1781627526000,6078.0,0.00012892,2]
[425237039,1781627526000,-692.85479534,0.00035951,30]
[425237036,1781627526000,-503.0,0.00035951,30]
[425237033,1781627526000,-151.0,0.00035951,30]
[425237037,1781627526000,-33.54820466,0.00035951,30]
[425237038,1781627526000,-151.0,0.00035951,30]
[425237034,1781627526000,-196.575898,0.00035951,30]
[425237035,1781627526000,-2534.90545734,0.00035951,30]
[425237032,1781627526000,-1289.520228,0.00035951,30]
[425237029,1781627526000,-196.575907,0.00035951,30]
[425237028,1781627526000,-2301.506187,0.00035951,30]
[425237020,1781627526000,-1531.422776,0.00035951,30]
[425237027,1781627526000,-151.0,0.00035951,30]
[425237017,1781627526000,-2301.506184,0.00035951,30]
[425237026,1781627526000,-3848.457869,0.00035951,30]
[425237019,1781627526000,-196.575907,0.00035951,30]
[425237030,1781627526000,-3071.453662,0.00035951,30]
[425237022,1781627526000,-2301.506184,0.00035951,30]
[425237031,1781627526000,-3848.457869,0.00035951,30]
[425237025,1781627526000,-1531.422773,0.00035951,30]
[425237023,1781627526000,-196.575907,0.00035951,30]
[425237024,1781627526000,-3653.519002,0.00035951,30]
[425237021,1781627526000,-151.0,0.00035951,30]
[425237018,1781627526000,-3653.519003,0.00035951,30]
[425237043,1781627527000,3558.0,0.00012892,2]
[425237041,1781627527000,419.0,0.00012892,2]
[425237042,1781627527000,934.0,0.00012892,2]
[425237044,1781627530000,17786.48,0.00013699,2]
[425237045,1781627530000,221.341889,0.00013698,2]
[425237046,1781627531000,295.72750092,0.00014199,2]
[425237047,1781627531000,159.23788511,0.0001419,2]
[425237049,1781627565000,151.0,0.00013699,2]
[425237050,1781627570000,151.0,0.00013699,2]
[425237051,1781627572000,151.0,0.00013699,2]
[425237052,1781627575000,151.0,0.00013699,2]
[425237053,1781627619000,150.0,0.00013599,2]
[425237055,1781627680000,396.14467157,0.00013698,2]
[425237054,1781627680000,237.22344567,0.00013698,2]
[425237056,1781627686000,500.0,0.00012891,2]
[425237057,1781627686000,500.0,0.00012891,2]
[425237058,1781627688000,500.0,0.00012891,2]
[425237059,1781627688000,500.0,0.00012891,2]
[425237061,1781627688000,500.0,0.00012891,2]
[425237060,1781627688000,500.0,0.00012891,2]
[425237063,1781627688000,500.0,0.00012891,2]
[425237064,1781627688000,500.0,0.00012891,2]
[425237065,1781627688000,164.82031397,0.00012891,2]
[425237062,1781627688000,500.0,0.00012891,2]
[425237066,1781627717000,182.87,0.000112,2]
[425237067,1781627762000,150.0,0.00013698,2]
[425237068,1781627764000,2500.0,0.00014182,2]
[425237072,1781627765000,2500.0,0.00013736,2]
[425237071,1781627765000,2500.0,0.00013736,2]
[425237070,1781627765000,2500.0,0.00013736,2]
[425237069,1781627765000,2500.0,0.00013736,2]
[425237073,1781627768000,600.0,0.00014182,2]
[425237077,1781627768000,600.0,0.00013736,2]
[425237076,1781627768000,600.0,0.00013736,2]
[425237075,1781627768000,600.0,0.00013736,2]
[425237074,1781627768000,600.0,0.00013736,2]
[425237078,1781627777000,166.66,0.00014837,2]
[425237079,1781627799000,2328.0,0.0001372,2]
[425237080,1781627823000,2500.0,0.00014182,2]
[425237081,1781627823000,2500.0,0.00013736,2]
[425237084,1781627823000,2500.0,0.00013736,2]
[425237083,1781627823000,2500.0,0.00013736,2]
[425237082,1781627823000,2500.0,0.00013736,2]
[425237089,1781627825000,600.0,0.00013736,2]
[425237088,1781627825000,600.0,0.00013736,2]
[425237087,1781627825000,600.0,0.00013736,2]
[425237085,1781627825000,600.0,0.00014182,2]
[425237086,1781627825000,600.0,0.00013736,2]
[425237090,1781627919000,150.0,0.00013599,2]
[425237091,1781628027000,1000.0,0.0003,120]
[425237092,1781628029000,298.73640361,0.00028963,120]
[425237093,1781628045000,152.0,0.00012818,7]
[425237094,1781628196000,151.0,0.00013693,2]
[425237095,1781628200000,151.0,0.00013693,2]
[425237096,1781628203000,151.0,0.00013693,2]
[425237097,1781628207000,151.0,0.00013693,2]
[425237098,1781628248000,221.01,0.0001374,2]
[425237099,1781628544000,250.0,0.0001485,2]
[425237100,1781628583000,112678.582484,0.0003,120]
[425237106,1781628631000,-308.3712,0.00014985,2]
[425237105,1781628631000,-1773.8,0.00014985,2]
[425237142,1781628633000,166.66,0.00014837,2]
[425237161,1781628638000,-600.0,0.00014985,2]
[425237171,1781628638000,-600.0,0.00014986,2]
[425237159,1781628638000,-13.915736,0.00014985,2]
[425237163,1781628638000,-2500.0,0.00014986,2]
[425237169,1781628638000,-600.0,0.00014986,2]
[425237173,1781628638000,-277.3012701,0.00014986,2]
[425237162,1781628638000,-2500.0,0.00014986,2]
[425237165,1781628638000,-2500.0,0.00014986,2]
[425237167,1781628638000,-600.0,0.00014986,2]
[425237157,1781628638000,-403.913064,0.00014985,2]
[425237177,1781628638000,-1284.44919832,0.00014986,2]
[425237179,1781628638000,-4793.55080168,0.00014986,2]
[425237181,1781628638000,-640.4352833,0.00014986,2]
[425237185,1781628638000,-361.83702995,0.00014986,2]
[425237192,1781628638000,-1000.0,0.00014989,2]
[425237190,1781628638000,-2643.72768675,0.00014986,2]
[425237195,1781628638000,-192.80231325,0.00014989,2]
[425237197,1781628638000,-680.33,0.00014989,2]
[425237200,1781628638000,-126.86768675,0.00014989,2]
[425237175,1781628638000,-3558.0,0.00014986,2]
[425237202,1781628638000,-531.2842603,0.00014989,2]
[425237213,1781628639000,-1000.0,0.00014989,2]
[425237211,1781628639000,-468.7157397,0.00014989,2]
[425237216,1781628639000,-1000.0,0.00014989,2]
[425237212,1781628639000,-1000.0,0.00014989,2]
[425237215,1781628639000,-990.42131092,0.00014989,2]
[425237214,1781628639000,-9.57868908,0.00014989,2]
[425237237,1781628640000,-1000.0,0.00014989,2]
[425237243,1781628640000,-1000.0,0.00014989,2]
[425237236,1781628640000,-1000.0,0.00014989,2]
[425237238,1781628640000,-1000.0,0.00014989,2]
[425237234,1781628640000,-1000.0,0.00014989,2]
[425237239,1781628640000,-1000.0,0.00014989,2]
[425237249,1781628640000,-150.0,0.00014989,2]
[425237240,1781628640000,-1000.0,0.00014989,2]
[425237246,1781628640000,-500.0,0.00014989,2]
[425237245,1781628640000,-1115.48232986,0.00014989,2]
[425237248,1781628640000,-311.0,0.00014989,2]
[425237250,1781628640000,-321.0,0.00014989,2]
[425237255,1781628640000,-152.0,0.00014989,2]
[425237244,1781628640000,-1000.0,0.00014989,2]
[425237254,1781628640000,-320.0,0.00014989,2]
[425237241,1781628640000,-1000.0,0.00014989,2]
[425237242,1781628640000,-1000.0,0.00014989,2]
[425237225,1781628640000,-1000.0,0.00014989,2]
[425237233,1781628640000,-1000.0,0.00014989,2]
[425237247,1781628640000,-314.0,0.00014989,2]
[425237219,1781628640000,-1000.0,0.00014989,2]
[425237218,1781628640000,-1000.0,0.00014989,2]
[425237220,1781628640000,-1000.0,0.00014989,2]
[425237217,1781628640000,-1000.0,0.00014989,2]
[425237222,1781628640000,-1000.0,0.00014989,2]
[425237221,1781628640000,-1000.0,0.00014989,2]
[425237235,1781628640000,-1000.0,0.00014989,2]
[425237223,1781628640000,-1000.0,0.00014989,2]
[425237227,1781628640000,-1000.0,0.00014989,2]
[425237226,1781628640000,-1000.0,0.00014989,2]
[425237228,1781628640000,-1000.0,0.00014989,2]
[425237231,1781628640000,-1000.0,0.00014989,2]
[425237232,1781628640000,-1000.0,0.00014989,2]
[425237229,1781628640000,-1000.0,0.00014989,2]
[425237230,1781628640000,-1000.0,0.00014989,2]
[425237224,1781628640000,-1000.0,0.00014989,2]
[425237251,1781628640000,-320.0,0.00014989,2]
[425237279,1781628640000,-310.0,0.00014989,2]
[425237253,1781628640000,-317.0,0.00014989,2]
[425237275,1781628640000,-316.0,0.00014989,2]
[425237278,1781628640000,-320.0,0.00014989,2]
[425237289,1781628640000,-315.0,0.00014989,2]
[425237290,1781628640000,-314.0,0.0001499,2]
[425237291,1781628640000,-316.0,0.0001499,2]
[425237280,1781628640000,-151.0,0.00014989,2]
[425237285,1781628640000,-311.0,0.00014989,2]
[425237252,1781628640000,-150.0,0.00014989,2]
[425237281,1781628640000,-316.0,0.00014989,2]
[425237282,1781628640000,-319.0,0.00014989,2]
[425237283,1781628640000,-151.0,0.00014989,2]
[425237288,1781628640000,-309.0,0.00014989,2]
[425237286,1781628640000,-318.0,0.00014989,2]
[425237284,1781628640000,-310.0,0.00014989,2]
[425237292,1781628640000,-150.0,0.0001499,2]
[425237293,1781628640000,-17062.82137578,0.00015,2]
[425237287,1781628640000,-152.0,0.00014989,2]
[425237276,1781628640000,-321.0,0.00014989,2]
[425237277,1781628640000,-150.0,0.00014989,2]
[425237273,1781628640000,-151.0,0.00014989,2]
[425237257,1781628640000,-314.0,0.00014989,2]
[425237256,1781628640000,-315.0,0.00014989,2]
[425237264,1781628640000,-311.0,0.00014989,2]
[425237265,1781628640000,-315.0,0.00014989,2]
[425237258,1781628640000,-318.0,0.00014989,2]
[425237266,1781628640000,-151.0,0.00014989,2]
[425237270,1781628640000,-151.0,0.00014989,2]
[425237267,1781628640000,-311.0,0.00014989,2]
[425237268,1781628640000,-315.0,0.00014989,2]
[425237259,1781628640000,-150.0,0.00014989,2]
[425237260,1781628640000,-316.0,0.00014989,2]
[425237263,1781628640000,-151.0,0.00014989,2]
[425237269,1781628640000,-312.0,0.00014989,2]
[425237271,1781628640000,-311.0,0.00014989,2]
[425237272,1781628640000,-314.0,0.00014989,2]
[425237274,1781628640000,-314.0,0.00014989,2]
[425237261,1781628640000,-313.0,0.00014989,2]
[425237310,1781628642000,-656.05561571,0.00015,2]
[425237311,1781628642000,-82281.12300851,0.00015,2]
[425237312,1781628642000,-190.32031126,0.0001505,2]
[425237314,1781628642000,-500.0,0.00015263,2]
[425237313,1781628642000,-166.66,0.0001515,2]
[425237316,1781628642000,-606.82466409,0.00015537,2]
[425237315,1781628642000,-166.66,0.00015462,2]
[425237317,1781628642000,-500.0,0.00015617,2]
[425237345,1781628643000,-500.0,0.00016437,2]
[425237346,1781628643000,-500.0,0.00016438,2]
[425237338,1781628643000,-1117.16778374,0.00016109,2]
[425237339,1781628643000,-1020.05895647,0.00016109,2]
[425237341,1781628643000,-9999.99,0.00016116,2]
[425237340,1781628643000,-1073.33909847,0.00016109,2]
[425237350,1781628643000,-500.0,0.00016438,2]
[425237351,1781628643000,-500.0,0.00016438,2]
[425237352,1781628643000,-500.0,0.00016438,2]
[425237354,1781628643000,-500.0,0.00016438,2]
[425237358,1781628643000,-500.0,0.00016438,2]
[425237348,1781628643000,-500.0,0.00016438,2]
[425237353,1781628643000,-500.0,0.00016438,2]
[425237357,1781628643000,-500.0,0.00016438,2]
[425237355,1781628643000,-500.0,0.00016438,2]
[425237359,1781628643000,-500.0,0.00016438,2]
[425237361,1781628643000,-500.0,0.00016438,2]
[425237372,1781628643000,-3646.0,0.00017986,2]
[425237362,1781628643000,-184.38402303,0.00016438,2]
[425237360,1781628643000,-500.0,0.00016438,2]
[425237349,1781628643000,-500.0,0.00016438,2]
[425237347,1781628643000,-500.0,0.00016438,2]
[425237342,1781628643000,-24795.39546632,0.00016177,2]
[425237363,1781628643000,-500.0,0.00016438,2]
[425237319,1781628643000,-500.0,0.00015618,2]
[425237318,1781628643000,-500.0,0.00015617,2]
[425237320,1781628643000,-191.13315145,0.00015618,2]
[425237325,1781628643000,-773.82,0.00015618,2]
[425237321,1781628643000,-500.0,0.00015618,2]
[425237323,1781628643000,-9999.99,0.00015618,2]
[425237324,1781628643000,-150.99,0.00015618,2]
[425237322,1781628643000,-500.0,0.00015618,2]
[425237327,1781628643000,-150.0,0.00015618,2]
[425237331,1781628643000,-200.0,0.00015859,2]
[425237328,1781628643000,-292.08,0.00015618,2]
[425237326,1781628643000,-155.83,0.00015618,2]
[425237332,1781628643000,-4500.0,0.00016,2]
[425237330,1781628643000,-166.66,0.00015774,2]
[425237333,1781628643000,-168.58030302,0.00016087,2]
[425237337,1781628643000,-1080.46637391,0.00016109,2]
[425237329,1781628643000,-2192.43,0.00015618,2]
[425237334,1781628643000,-166.66,0.00016087,2]
[425237335,1781628643000,-166.66,0.00016087,2]
[425237336,1781628643000,-494.1753,0.000161,2]
[425237344,1781628643000,-166.66,0.00016399,2]
[425237343,1781628643000,-168.58030302,0.00016187,2]
[425237364,1781628643000,-2500.0,0.00016484,2]
[425237356,1781628643000,-500.0,0.00016438,2]
[425237367,1781628643000,-169.768208,0.00017116,2]
[425237395,1781628643000,-590.0,0.0002,2]
[425237396,1781628643000,-176.44538,0.0002,2]
[425237397,1781628643000,-151.0,0.0002,2]
[425237398,1781628643000,-368.0,0.0002,2]
[425237404,1781628643000,-979.0,0.0002,2]
[425237399,1781628643000,-4512.0,0.0002,2]
[425237402,1781628643000,-200.0,0.0002,10]
[425237365,1781628643000,-600.0,0.00016484,2]
[425237405,1781628643000,-1271.0,0.0002,2]
[425237401,1781628643000,-221.0,0.0002,2]
[425237392,1781628643000,-150000.0,0.000195,2]
[425237403,1781628643000,-160.0,0.0002,2]
[425237409,1781628643000,-228.0,0.0002,2]
[425237407,1781628643000,-263.0,0.0002,2]
[425237408,1781628643000,-451.0,0.0002,2]
[425237410,1781628643000,-300.0,0.000201,10]
[425237415,1781628643000,-1222.51537846,0.00020986,2]
[425237413,1781628643000,-3558.0,0.00020986,2]
[425237411,1781628643000,-1734.62772924,0.00020349,2]
[425237412,1781628643000,-1798.80895522,0.00020897,2]
[425237414,1781628643000,-4855.48462154,0.00020986,2]
[425237416,1781628643000,-125.52970387,0.00020986,2]
[425237406,1781628643000,-161.0,0.0002,2]
[425237393,1781628643000,-292.08,0.00019523,2]
[425237400,1781628643000,-221.0,0.0002,2]
[425237391,1781628643000,-500.0,0.00019499,2]
[425237368,1781628643000,-292.08,0.00017571,2]
[425237390,1781628643000,-345.64958057,0.00019499,2]
[425237366,1781628643000,-6523.0,0.00017,2]
[425237370,1781628643000,-6078.0,0.00017986,2]
[425237374,1781628643000,-3694.0,0.00018,2]
[425237375,1781628643000,-854.25448383,0.0001805,2]
[425237376,1781628643000,-169.768208,0.00018058,2]
[425237377,1781628643000,-293.64571347,0.00018151,2]
[425237378,1781628643000,-1500.0,0.00018157,2]
[425237379,1781628643000,-1555.5,0.00018705,2]
[425237369,1781628643000,-3558.0,0.00017986,2]
[425237381,1781628643000,-227.59646671,0.000189,2]
[425237380,1781628643000,-166.66,0.00018742,2]
[425237394,1781628643000,-1672.7364795,0.00019801,2]
[425237389,1781628643000,-500.0,0.00019499,2]
[425237388,1781628643000,-1613.0535,0.00019253,2]
[425237385,1781628643000,-3658.0,0.00019,2]
[425237387,1781628643000,-14005.0134278,0.00019,2]
[425237382,1781628643000,-14452.36367543,0.0001899,2]
[425237383,1781628643000,-7084.41,0.00019,2]
[425237384,1781628643000,-4250.65,0.00019,2]
[425237386,1781628643000,-169.768209,0.00019,2]
[425237439,1781628645000,-500.0,0.00021899,2]
[425237428,1781628645000,-263.0,0.00021,2]
[425237438,1781628645000,-300.0,0.00021899,7]
[425237434,1781628645000,-1126.0,0.000215,2]
[425237431,1781628645000,-176.44538,0.00021333,2]
[425237433,1781628645000,-292.08,0.00021475,2]
[425237429,1781628645000,-451.0,0.00021,2]
[425237430,1781628645000,-228.0,0.00021,2]
[425237425,1781628645000,-979.0,0.00021,2]
[425237423,1781628645000,-221.0,0.00021,2]
[425237424,1781628645000,-160.0,0.00021,2]
[425237427,1781628645000,-161.0,0.00021,2]
[425237422,1781628645000,-221.0,0.00021,2]
[425237421,1781628645000,-368.0,0.00021,2]
[425237420,1781628645000,-151.0,0.00021,2]
[425237419,1781628645000,-590.0,0.00021,2]
[425237418,1781628645000,-3520.47029613,0.00020986,2]
[425237436,1781628645000,-500.0,0.00021899,2]
[425237426,1781628645000,-1271.0,0.00021,2]
[425237432,1781628645000,-1865.36488656,0.00021445,2]
[425237445,1781628645000,-800.0,0.00021918,2]
[425237435,1781628645000,-10000.0,0.00021895,2]
[425237456,1781628645000,-151.0,0.00021993,2]
[425237453,1781628645000,-151.0,0.00021993,2]
[425237450,1781628645000,-151.0,0.00021993,2]
[425237449,1781628645000,-151.0,0.00021993,2]
[425237458,1781628645000,-151.0,0.00021993,2]
[425237451,1781628645000,-151.0,0.00021993,2]
[425237459,1781628645000,-151.0,0.00021993,2]
[425237454,1781628645000,-151.0,0.00021993,2]
[425237455,1781628645000,-151.0,0.00021993,2]
[425237437,1781628645000,-3000.0,0.00021899,2]
[425237447,1781628645000,-844.07059706,0.00021918,2]
[425237448,1781628645000,-151.0,0.00021993,2]
[425237446,1781628645000,-800.0,0.00021918,2]
[425237457,1781628645000,-151.0,0.00021993,2]
[425237444,1781628645000,-5000.0,0.00021918,2]
[425237441,1781628645000,-610.36,0.00021899,2]
[425237443,1781628645000,-823.01767004,0.000219,2]
[425237442,1781628645000,-265875.61430009,0.000219,3]
[425237440,1781628645000,-500.0,0.00021899,2]
[425237452,1781628645000,-151.0,0.00021993,2]
[425237472,1781628646000,-151.0,0.00021993,2]
[425237469,1781628646000,-151.0,0.00021993,2]
[425237471,1781628646000,-151.0,0.00021993,2]
[425237470,1781628646000,-151.0,0.00021993,2]
[425237460,1781628646000,-151.0,0.00021993,2]
[425237467,1781628646000,-151.0,0.00021993,2]
[425237465,1781628646000,-151.0,0.00021993,2]
[425237462,1781628646000,-1934.38338736,0.00021993,2]
[425237468,1781628646000,-151.0,0.00021993,2]
[425237473,1781628646000,-590.0,0.00022,2]
[425237474,1781628646000,-151.0,0.00022,2]
[425237478,1781628646000,-160.0,0.00022,2]
[425237475,1781628646000,-368.0,0.00022,2]
[425237486,1781628646000,-2343.49557197,0.00022,7]
[425237484,1781628646000,-787.19644572,0.00022,7]
[425237483,1781628646000,-26286.37668977,0.00022,7]
[425237479,1781628646000,-1286.0,0.00022,2]
[425237481,1781628646000,-1271.0,0.00022,2]
[425237482,1781628646000,-24252.64866772,0.00022,7]
[425237480,1781628646000,-979.0,0.00022,2]
[425237477,1781628646000,-221.0,0.00022,2]
[425237476,1781628646000,-221.0,0.00022,2]
[425237518,1781628655000,62324.2434,0.00014889,2]
[425237519,1781628704000,356578.8361,0.00014887,2]
[425237521,1781628816000,250.0,0.00014,2]
[425237522,1781628827000,151.0,0.00013699,2]
[425237523,1781628831000,151.0,0.00013699,2]
[425237524,1781628834000,151.0,0.00013699,2]
[425237525,1781628839000,151.0,0.00013699,2]
[425237526,1781628968000,163.9185763,0.000149,2]
[425237528,1781629042000,1646.03534006,0.000149,2]
[425237529,1781629049000,204.83682012,0.000149,2]
[425237530,1781629086000,609.02499599,0.000149,2]
[425237531,1781629158000,209.96,0.0001374,2]
[425237533,1781629497000,166.66,0.00014837,2]
[425237534,1781629508000,150.0,0.00013488,2]
[425237537,1781629511000,150.0,0.00014237,2]
[425237536,1781629511000,150.0,0.00013488,2]
[425237535,1781629511000,150.0,0.00013488,2]
[425237538,1781629621000,2842.36,0.00014444,2]
[425237560,1781629831000,-9617.53,0.00014998,2]
[425237553,1781629831000,-9999.99,0.00014986,2]
[425237558,1781629831000,-463.43736012,0.0001499,2]
[425237554,1781629831000,-9807.94,0.0001499,2]
[425237551,1781629831000,-2343.0,0.00014986,2]
[425237559,1781629831000,-150.0,0.00014998,2]
[425237557,1781629831000,-463.43736012,0.0001499,2]
[425237556,1781629831000,-463.43736012,0.0001499,2]
[425237550,1781629831000,-600.0,0.00014983,2]
[425237549,1781629831000,-600.0,0.00014983,2]
[425237541,1781629831000,-250.0,0.00014982,2]
[425237562,1781629831000,-1349.467,0.00014999,2]
[425237545,1781629831000,-2500.0,0.00014982,2]
[425237544,1781629831000,-150.0,0.00014982,2]
[425237543,1781629831000,-600.0,0.00014982,2]
[425237540,1781629831000,-300.0,0.00014982,2]
[425237547,1781629831000,-2500.0,0.00014982,2]
[425237548,1781629831000,-600.0,0.00014983,2]
[425237546,1781629831000,-2500.0,0.00014982,2]
[425237542,1781629831000,-2500.0,0.00014982,2]
[425237552,1781629831000,-150.0,0.00014986,2]
[425237572,1781629831000,-500.0,0.00014999,2]
[425237566,1781629831000,-500.0,0.00014999,2]
[425237563,1781629831000,-281.404,0.00014999,2]
[425237591,1781629831000,-480.07323018,0.00015,2]
[425237590,1781629831000,-508.0,0.00015,2]
[425237587,1781629831000,-531.73649619,0.00015,2]
[425237580,1781629831000,-500.0,0.00014999,2]
[425237584,1781629831000,-856.57435562,0.00015,2]
[425237581,1781629831000,-107448.18379996,0.00015,2]
[425237582,1781629831000,-166552.61394851,0.00015,2]
[425237583,1781629831000,-2533.11165329,0.00015,2]
[425237576,1781629831000,-500.0,0.00014999,2]
[425237561,1781629831000,-500.0,0.00014999,2]
[425237578,1781629831000,-3000.0,0.00014999,2]
[425237575,1781629831000,-500.0,0.00014999,2]
[425237585,1781629831000,-6045.97825353,0.00015,2]
[425237574,1781629831000,-500.0,0.00014999,2]
[425237567,1781629831000,-500.0,0.00014999,2]
[425237570,1781629831000,-500.0,0.00014999,2]
[425237568,1781629831000,-500.0,0.00014999,2]
[425237569,1781629831000,-500.0,0.00014999,2]
[425237565,1781629831000,-500.0,0.00014999,2]
[425237564,1781629831000,-500.0,0.00014999,2]
[425237577,1781629831000,-500.0,0.00014999,2]
[425237555,1781629831000,-999.99,0.0001499,2]
[425237602,1781629838000,-2010.03481336,0.00015,2]
[425237601,1781629838000,-3468.03597417,0.00015,2]
[425237609,1781629841000,-14499.72,0.00015,2]
[425237608,1781629841000,-13605.81879233,0.00015,2]
[425237635,1781629842000,-2654.8295376,0.00015,2]
[425237653,1781629845000,-638.76986886,0.00015,2]
[425237657,1781629929000,2000.0,0.00030137,120]
[425237658,1781629980000,888.0,0.00030137,120]
[425237659,1781629984000,500.0,0.00014878,2]
[425237660,1781630009000,1079.574,0.000147,2]
[425237661,1781630036000,150.0,0.00014477,2]
[425237662,1781630069000,349.79088863,0.00014896,2]
[425237664,1781630070000,923.10368932,0.00014896,2]
[425237663,1781630070000,617.07258958,0.00014896,2]
[425237666,1781630071000,199.46,0.0001374,2]
[425237665,1781630071000,1248.984,0.00014896,2]
[425237667,1781630092000,2796.32278443,0.000149,2]
[425237668,1781630103000,187.82072455,0.000149,2]
[425237669,1781630193000,504.41,0.00014325,2]
[425237670,1781630248000,12503.7172,0.000149,2]
[425237671,1781630257000,1033.46437831,0.00014602,2]
[425237672,1781630269000,166.66,0.00014837,2]
[425237673,1781630304000,266.28,0.000149,2]
[425237674,1781630322000,2000.0,0.00030137,120]
[425237675,1781630329000,2000.0,0.00030137,120]
[425237676,1781630335000,2000.0,0.00030137,120]
[425237677,1781630336000,4733.8597,0.000149,2]
[425237678,1781630340000,2000.0,0.00030137,120]
[425237679,1781630346000,2000.0,0.00030137,120]
[425237680,1781630352000,2000.0,0.00030137,120]
[425237681,1781630359000,2000.0,0.00030137,120]
[425237682,1781630365000,2000.0,0.00030137,120]
[425237683,1781630374000,2300.0,0.00030137,120]
[425237684,1781630385000,34086.31957567,0.000149,2]
[425237685,1781630415000,2000.0,0.000149,2]
[425237686,1781630427000,1000.0,0.0003,120]
[425237687,1781630463000,1872.0,0.00014762,2]
[425237688,1781630471000,160.0,0.0001468,2]
[425237689,1781630511000,2000.0,0.00030137,120]
[425237690,1781630575000,3289.46854879,0.000149,2]
[425237691,1781630611000,-518.31336822,0.00014952,2]
[425237692,1781630611000,-2500.0,0.00014953,2]
[425237693,1781630611000,-150.0,0.00014953,2]
[425237697,1781630611000,-2500.0,0.0001497,2]
[425237695,1781630611000,-250.0,0.00014953,2]
[425237696,1781630611000,-1627.57540508,0.0001497,2]
[425237698,1781630611000,-1854.1112267,0.0001497,2]
[425237694,1781630611000,-600.0,0.00014953,2]
[425237701,1781630626000,-600.0,0.0001497,2]
[425237699,1781630626000,-645.8887733,0.0001497,2]
[425237700,1781630626000,-600.0,0.0001497,2]
[425237705,1781630626000,-2000.0,0.00014985,2]
[425237702,1781630626000,-316.05641197,0.00014984,2]
[425237704,1781630626000,-300.0,0.00014984,2]
[425237706,1781630626000,-309.20137664,0.00014985,2]
[425237703,1781630626000,-228.85343809,0.00014984,2]